Cogmind - Beta 10.2 @@@ ROGUE MODE // 2021.09.06 @ 20:14:20 Player: cavemonk Result: Destroyed by 8R-AWN with 8R-AWN's Boregun Performance ------------- Evolutions (0) 0 Regions Visited (3) 600 Robots Destroyed (22) 110 Value Destroyed (366) 366 Prototype IDs (23) 460 Alien Tech Used (0) 0 Bonus (314) 314 TOTAL SCORE: 1850 Bonus ------- Follower Combat Kills 14 Aligned with FarCom 300 Cogmind --------- Core Integrity 0/250 Matter 247/300 Energy 100/100 System Corruption 0% Temperature Cool (0) Movement Core (650) Ox12 Location -10/Exiles Parts ------- > --- POWER (1) -------- (None) > --- PROPULSION (2) --- (None) > --- UTILITY (2) ------ Large Storage Unit Large Storage Unit > --- WEAPON (2) ------- Autogun Autogun > --- INVENTORY (16) --- Light Armor Plating Light Armor Plating Heavy Assault Rifle Heavy Assault Rifle Heavy Assault Rifle Heavy Assault Rifle Heavy Assault Rifle Heavy Assault Rifle Heavy Assault Rifle Heavy Assault Rifle Plasma Cutter Peak State ------------ > --- POWER ------------ Ion Engine > --- PROPULSION ------- Light Treads Light Treads > --- UTILITY ---------- Large Storage Unit Large Storage Unit > --- WEAPON ----------- Heavy Assault Rifle Heavy Assault Rifle > --- INVENTORY -------- Ion Engine Light Treads Light Armor Plating Light Armor Plating Heavy Assault Rifle Heavy Assault Rifle Heavy Assault Rifle Heavy Assault Rifle Heavy Assault Rifle Heavy Assault Rifle Autogun Autogun Autogun Autogun Plasma Cutter Plasma Cutter [Rating: 11] Favorites ----------- Power Ion Engine Engine Ion Engine Propulsion Light Treads Treads Light Treads Leg Aluminum Leg Wheel Wheel Utility Large Storage Unit Device Improved Terrain Scanner Storage Large Storage Unit Weapon Heavy Assault Rifle Energy Gun EM Pulse Gun Ballistic Gun Heavy Assault Rifle Special Weapon Mining Laser Build | -11 -10 -10 -10 ------- Run | Scr Mat Min Exi Slots Evolved . | . . . . Power . | . . . . Propulsion . | . . . . Utility . | . . . . Weapon . | . . . . Parts Attached 31 | 6 16 . 9 Power 2 | . 1 . 1 Engine 2 | . 1 . 1 Core . | . . . . Reactor . | . . . . Propulsion 7 | 2 3 . 2 Treads 5 | 1 2 . 2 Leg . | . . . . Wheel 2 | 1 1 . . Hover . | . . . . Flight . | . . . . Utility 4 | 1 3 . . Device 1 | 1 . . . Storage 3 | . 3 . . Processor . | . . . . Hackware . | . . . . Protection . | . . . . Artifact . | . . . . Weapon 18 | 3 9 . 6 Energy Gun 6 | 2 4 . . Energy Cannon . | . . . . Ballistic Gun 9 | 1 3 . 5 Ballistic Cannon . | . . . . Launcher . | . . . . Special Weapon 3 | . 2 . 1 Impact Weapon . | . . . . Slashing Weapon . | . . . . Piercing Weapon . | . . . . Special Melee Weapon . | . . . . Unidentified Prototypes . | . . . . Parts Lost 9 | . 1 . 8 Power 2 | . . . 2 Propulsion 3 | . . . 3 Utility . | . . . . Weapon 4 | . 1 . 3 Highest Loss Streak 5 | . 1 . 5 Average Slot Usage (%) 99 | . 99 100 98 Engine 13 | . 14 14 13 Treads 26 | . 23 28 27 Wheel 1 | . 4 . . Device 1 | . 5 . . Storage 26 | . 22 28 28 Energy Gun 5 | . 19 . . Ballistic Gun 21 | . 8 28 27 Naked Turns . | . . . . Heaviest Build 43 | 14 43 43 43 Greatest Support 40 | 20 40 40 40 Greatest Overweight (x) 2 | 1 2 1 1 Average Overweight (x) 1 | . 1 1 1 Largest Inventory Capacity 16 | 6 16 16 16 Average Capacity 14 | 6 13 16 16 Most Carried 16 | 6 16 16 16 Average Carried 14 | 5 13 16 15 Final Capacity 16 | 6 16 16 16 Final Carried 16 | 5 16 16 11 Class Distribution -------------------- 100% | Mutant Dominant Class ---------------- Mutant | -10/Materials Mutant | -10/Mines Mutant | -10/Exiles Resources | -11 -10 -10 -10 ----------- Run | Scr Mat Min Exi Matter Collected 783 | 321 232 39 191 Remotely . | . . . . Salvage Created 777 | 145 465 67 100 Parts 44 | 8 26 10 . Haulers Intercepted 2 | . 2 . . Recyclers Shooed 2 | . 1 1 . Parts Field Recycled . | . . . . Retrieved Matter . | . . . . Parts Self-Destructed . | . . . . Prevented . | . . . . Kills | -11 -10 -10 -10 ------- Run | Scr Mat Min Exi Combat Hostiles Destroyed 19 | . 10 3 6 Guns 17 | . 8 3 6 AOE 2 | . 2 . . Classes Destroyed 8 | 3 4 . 1 Worker 2 | 1 . 1 . Tunneler 2 | 2 . . . Hauler 2 | . 2 . . Recycler 2 | 1 1 . . Operator 1 | . 1 . . Swarmer 6 | . 3 3 . Grunt 7 | . 7 . . Assembled 6 | . . . 6 Best Kill Streak 6 | 1 3 3 6 Combat Bots Only 6 | . 3 3 6 Max Kills in Single Turn 2 | 1 2 1 1 Gunslinging 1 | . 1 . . Exploded 2 | . 2 . . Melee . | . . . . Uniques/NPCs Destroyed . | . . . . Combat | -11 -10 -10 -10 -------- Run | Scr Mat Min Exi Damage Taken 1539 | . 393 81 1065 Core 269 | . 90 20 159 Absorbed by Shields . | . . . . Core Remaining (%) 100 | 100 . . . Volleys Fired 82 | 18 34 6 24 Largest 2 | 2 2 2 2 Hottest 100 | 60 100 46 46 Shots Fired 159 | 36 65 12 46 Gun 155 | 36 62 12 45 Cannon . | . . . . Launcher . | . . . . Special 4 | . 3 . 1 Kinetic 111 | 25 29 12 45 Thermal 4 | . 3 . 1 Explosive . | . . . . Electromagnetic 44 | 11 33 . . Robot Hit Streak 10 | 10 10 4 10 Robot Miss Streak 3 | 3 2 2 2 Penetration Max . | . . . . Secondary Targets 2 | . 1 . 1 Max Gunslinging Chain 1 | . 1 . 1 Shots Hit Robots 99 | 22 41 6 30 Core Hits 42 | 5 20 4 13 Critical Hits 2 | 2 . . . Critical Kills . | . . . . Critical Parts Destroyed 2 | 2 . . . Melee Attacks . | . . . . Impact . | . . . . Slashing . | . . . . Piercing . | . . . . Sneak Attacks . | . . . . Combat Hostiles . | . . . . Follow-up Attacks . | . . . . Damage Inflicted 1756 | 262 900 134 460 Guns 1409 | 262 597 91 459 Cannons . | . . . . Explosions 289 | . 289 . . Melee . | . . . . Ramming 57 | . 14 43 . Kinetic 1010 | 157 303 91 459 Thermal 290 | . 289 . 1 Explosive . | . . . . Electromagnetic 399 | 105 294 . . Impact . | . . . . Slashing . | . . . . Piercing . | . . . . Highest Corruption . | . . . . Average Corruption . | . . . . Corruption Purged . | . . . . Overload Shots . | . . . . Overflow Damage 121 | . 121 . . Projectiles . | . . . . Explosions 121 | . 121 . . Melee . | . . . . Knockbacks 2 | . . 2 . Impact 2 | . . 2 . Kinetic . | . . . . Secondary . | . . . . Self-Inflicted Damage 109 | . 109 . . Shots 2 | . 2 . . Rammed 10 | . 4 6 . Targets Rammed 10 | . 4 6 . Kicked . | . . . . Crushed . | . . . . Highest Temperature 100 | . 100 . 59 Average Temperature 25 | . 26 . 23 Received Heat Transfer 317 | . 117 . 200 Siege Activations . | . . . . Robots Corrupted . | . . . . Combat Hostiles . | . . . . Parts Fried . | . . . . Impact Corruptions . | . . . . Robots Melted . | . . . . Combat Hostiles . | . . . . Parts Melted . | . . . . Heat Transferred 209 | . 200 . 9 Parts Sabotaged . | . . . . Parts Stolen . | . . . . Parts Stripped . | . . . . Power Chain Reactions 2 | . 2 . . Missiles Intercepted . | . . . . Alert | -11 -10 -10 -10 ------- Run | Scr Mat Min Exi Peak Influence 182 | 20 182 155 . Initial 70 | . 13 70 . Average 54 | 10 81 39 . Maximum Alert Level . | . . . . Low Security (%) 100 | 100 100 100 . Level 1 . | . . . . Level 2 . | . . . . Level 3 . | . . . . Level 4 . | . . . . Level 5 . | . . . . High Security . | . . . . Max Security . | . . . . Squads Dispatched 4 | . 4 . . Investigation 3 | . 3 . . Extermination . | . . . . Reinforcement 1 | . 1 . . Assault . | . . . . Garrison . | . . . . Intercept . | . . . . Construction Impeded . | . . . . Haulers Reinforced . | . . . . Stealth | -11 -10 -10 -10 --------- Run | Scr Mat Min Exi Distress Signals 4 | . 4 . . Communications Jammed . | . . . . Distress Signals . | . . . . Times Spotted 35 | . 22 5 8 Peak Tracking Total 9 | . 5 4 9 Tactical Retreats 3 | . 2 1 . Traps | -11 -10 -10 -10 ------- Run | Scr Mat Min Exi Traps Triggered . | . . . . Indirectly . | . . . . Trap Hack Attempts . | . . . . Triggered . | . . . . Disarmed . | . . . . Reprogrammed . | . . . . Reused . | . . . . Traps Extracted . | . . . . Installed . | . . . . Triggered . | . . . . Machines | -11 -10 -10 -10 ---------- Run | Scr Mat Min Exi Machines Disabled 4 | . 2 . 2 Max in Single Turn 1 | . 1 . 1 Machines Sabotaged . | . . . . Garrisons Compromised . | . . . . Overloaded Fab Kills . | . . . . Fab Network Shutdowns . | . . . . Hacking | -11 -10 -10 -10 --------- Run | Scr Mat Min Exi Machines Accessed 8 | . 6 1 1 Terminals 4 | . 3 1 . Fabricators . | . . . . Repair Stations 1 | . 1 . . Recycling Units 2 | . 2 . . Scanalyzers . | . . . . Garrison Access . | . . . . Total Hacks 17 | . 14 2 1 Successful 11 | . 8 2 1 Failed 6 | . 6 . . Catastrophic 1 | . 1 . . Database Lockouts . | . . . . Manual 15 | . 11 3 1 Terminals 12 | . 10 2 . Fabricators . | . . . . Repair Stations 2 | . 2 . . Recycling Units 2 | . 2 . . Scanalyzers . | . . . . Garrison Access . | . . . . Terminal Hacks 6 | . 4 1 1 Robot Analysis 2 | . 2 . . Branch Access Points 2 | . 1 1 . Terminal Index 1 | . 1 . . EX-Prototype ID Bank 1 | . . . 1 Fabricator Hacks . | . . . . Repair Station Hacks 1 | . 1 . . Scan Component 1 | . 1 . . Recycling Unit Hacks . | . . . . Scanalyzer . | . . . . Garrison Access Hacks . | . . . . Unauthorized Hacks 4 | . 3 1 . Terminals 2 | . 1 1 . Track 2 | . 1 1 . Fabricators . | . . . . Repair Stations . | . . . . Recycling Units 2 | . 2 . . Tunnel 2 | . 2 . . Scanalyzers . | . . . . Garrison Access . | . . . . Data Cores Recovered 1 | . 1 . . Used . | . . . . Hacking Detections 5 | . 4 1 . Full Trace Events . | . . . . Feedback Events . | . . . . Feedback Blocked . | . . . . Robot Schematics Acquired . | . . . . Robots Built . | . . . . Matter . | . . . . Time . | . . . . Total Robot Build Rating . | . . . . Part Schematics Acquired . | . . . . Parts Built . | . . . . Matter . | . . . . Time . | . . . . Total Part Build Rating . | . . . . Parts Repaired . | . . . . Time . | . . . . Parts Recycled . | . . . . Recycled Matter . | . . . . Retrieved Matter . | . . . . Retrieved Components . | . . . . Parts Scanalyzed . | . . . . Part Schematics Acquired . | . . . . Parts Damaged . | . . . . Bothacking | -11 -10 -10 -10 ------------ Run | Scr Mat Min Exi Used RIF Installer . | . . . . Robots Hacked . | . . . . Non-combat . | . . . . Combat . | . . . . Robot Hacks Applied . | . . . . Relay Couplers Released . | . . . . Robots Rewired . | . . . . Allies Hacked . | . . . . Hacks Repelled . | . . . . Allies | -11 -10 -10 -10 -------- Run | Scr Mat Min Exi Total Allies 2 | . . 2 . Largest Group 2 | . . 2 . Highest-Rated Group 47 | . . 47 . Highest-Rated Ally 31 | . . 31 . Total Orders . | . . . . Ally Attacks 16 | . . 16 . Total Damage 107 | . . 107 . Kills 3 | . . 3 . Allies Corrupted . | . . . . Allies Melted . | . . . . Intel | -11 -10 -10 -10 ------- Run | Scr Mat Min Exi Robot Analysis Total 2 | . 2 . . Derelict Logs Recovered 1 | . . 1 . Drone Launches . | . . . . Drone Recoveries . | . . . . Exploration | -11 -10 -10 -10 ------------- Run | Scr Mat Min Exi Turns Passed 3526 | 121 1067 1573 765 Spaces Moved 1304 | 42 641 246 375 Core . | . . . . Treads 951 | 11 319 246 375 Legs 19 | 19 . . . Wheels 334 | 12 322 . . Hover . | . . . . Flight . | . . . . Fastest Speed 90 | 90 90 180 180 Average Speed 158 | 121 139 180 180 Slowest Speed 180 | 160 180 180 180 Overloaded Moves . | . . . . Propulsion Burnouts . | . . . . Robots Hopped . | . . . . Cave-ins Triggered . | . . . . Exploration Rate (%) 49 | 3 85 41 68 Regions Visited 3 Branch Regions 2 Pre-discovered Areas 2 | . 2 . . Known Exits Taken 1 | . 1 . . Unknown Exits Taken 2 | 1 . 1 . Scrap Searched 1 | . . 1 . Spaces Dug 3 | . 3 . . Terrain Destroyed 37 | . 37 . . Melee . | . . . . Projectile 3 | . 3 . . AOE 34 | . 34 . . Terrain Rammed . | . . . . Walls Destroyed . | . . . . Machines Disabled . | . . . . Actions | -11 -10 -10 -10 --------- Run | Scr Mat Min Exi Total 2607 | 76 744 1360 427 Wait 1126 | 8 5 1103 10 Move 1301 | 41 640 245 375 Hop . | . . . . Pick Up 30 | 1 25 . 4 Fast Attach 4 | 1 3 . . Attach 9 | 2 2 . 5 Detach . | . . . . Swap 18 | 3 11 . 4 Drop 27 | 2 20 . 5 Fire 82 | 18 34 6 24 Melee . | . . . . Ram . | . . . . Kick . | . . . . Crush 10 | . 4 6 . Escape Stasis . | . . . . Rewire . | . . . . Trap . | . . . . Miscellaneous . | . . . . Route ------- -11/Scrapyard -10/Materials (discovered 3 exits: [*Mat x2] / *Min) -10/Mines -10/Exiles History --------- Turn | Location | Event 1 | -11/Scrapyard | Discovered new exit (range 3) 122 | -11/Scrapyard | Entered Materials 217 | -10/Materials | Discovered new exit (range 3) 222 | -10/Materials | Identified exit to Mines 337 | -10/Materials | Build established: Mutant 339 | -10/Materials | Discovered new exit (range 10) 1189 | -10/Materials | Entered Mines 1264 | -10/Mines | Assembled infested the area 1269 | -10/Mines | Assisted by a Guerilla fighting off Assembled 2546 | -10/Mines | Learned location of 1 exit from Materials 2755 | -10/Mines | Deemed a non-threat by the Exiles lab entrance 2755 | -10/Mines | Discovered new exit (range 5) 2762 | -10/Mines | Entered Exiles 2806 | -10/Exiles | Met 8R-AWN 2834 | -10/Exiles | Met EX-HEX 2933 | -10/Exiles | Met EX-DEC 3138 | -10/Exiles | Met EX-BIN 3233 | -10/Exiles | Aligned with FarCom system 3235 | -10/Exiles | Given EX-Vault access code 3282 | -10/Exiles | Opened EX-Vault 3320 | -10/Exiles | Warned to stay clear of 0b10 Research branches 3418 | -10/Exiles | Attacked by the Exiles 3460 | -10/Exiles | Core integrity fell below 50% 3468 | -10/Exiles | Core integrity fell below 20% 3493 | -10/Exiles | Lost 3 parts (1p1n1w) 3527 | -10/Exiles | Destroyed by 8R-AWN with 8R-AWN's Boregun Last Messages --------------- 03516_ Critical hit. 03516_ Lgt. Treads destroyed. 03516_ HV Slug penetrates Wall. 03518_ Penetrated by HV Slug. 03518_ HV Slug penetrates Wall. 03518_ Penetrated by HV Slug. 03518_ HV Slug penetrates Wall. 03520_ Penetrated by HV Slug. 03520_ Critical hit. 03520_ Ion Engine destroyed. 03520_ HV Slug penetrates Wall. 03520_ Penetrated by HV Slug. 03520_ HV Slug penetrates Wall. 03523_ Penetrated by HV Slug. 03523_ HV Slug penetrates Machine. 03523_ Penetrated by HV Slug. 03523_ HV Slug penetrates Machine. 03525_ Penetrated by HV Slug. 03525_ HV Slug penetrates Wall. 03527_ Penetrated by HV Slug. Map ----- +----------------------------------------------------+ | ?????????????????????????????????????????????????? | | ?????????????????????????????????????????????????? | | ?????????????????????????????????????????????????? | | ?????????????????????????????????????????????????? | | ?????????????????????????????????????????????????? | | ?????????????????????????????????????????????????? | | ?????????????????????????????????????????????????? | | ?????????????????????????????????????????????????? | | ?????????????????????????????????????????????????? | | ?????????????????????????????????????????????????? | | ?????????????????????????????????????????????????? | | ???????????????????????????????????????????????### | | ???????????????????????????????????????????????""" | | ???????????????????????????????????????????????""" | | ??????????????????????????????????????????????#""X | | ??????????????????????????????????????????????#" | | ??????????????????????????????????????????????#" | | ??????????????????????????????????????????????#""" | | ??????????????????????????????????????????????##"# | | ??????????????????????????????????????????????? ?? | | ?????????????????????????????????????????????????? | | ????? ????????????????????##?????????????????????? | | ????? ??????????????#####;#?????????????????????? | | ???? ######???????#!!!!"##????????????????????? | | ???? #""#??????# ;#????????????????????? | | ???? ??????# @ #?????????????????????? | | ????#" #????## g "#????????????##???????? | | ?????" ##### ! ""#???????????? ""?????? | | ??????# ## %% "#????????????" """????? | | ???????# #" %% ###???????????"" ????? | | ??????????# % %#????????????#"" ????? | | ????????????## %##???????????#"" "????? | | ?????????????### "#???????????? ""????? | | ???????########" ###???????????" "?????? | | ???????# """"" ##??????????# #?????? | | ???????#! "### " ######???### ###?### | | ???????#! "#?##" ""#####X# #"###"" | | ???????#! ##??#" """""" | | ???????# !""""""###???#"# "" """ | | ???????##########?????#### " " | | ?????????????????????????### | | ???????????????????????????### | | ?????????????????????????????## | | ??????????????????????????????## | | ???????????????????????????????##" | | ????????????????????????????????#""" | | ???????????????????????????????##" | | ???????????????????????????????#"" "" | | ???????????????????????????????#""" """# | | ??????????????????????????????#""" """## | +----------------------------------------------------+ Best States ------------- Heat Dissipation 25 Energy Generation 10 Energy Capacity 250 Matter Stores 300 Matter Capacity 300 Sight Range 16 Terrain Scan Range 16 Terrain Scan Density 10 Evasion (%) 42 Recoil Reduction 2 Item Schematics ----------------- None Robot Schematics ------------------ None Fabricated ------------ Nothing Alien Tech Used ----------------- None Achievements -------------- None Challenges ------------ None Game ------ Seed TacticalBiometalGuard Manual? 0 Play Time 00:17:35 Cumulative 270.8 hours Start 2021.09.06 @ 18:42:36 End 2021.09.06 @ 20:14:20 Sessions 1 Manual Loads 0 Difficulty Rogue Special Mode None Game No. 199 Rogue 199 Adventurer 0 Explorer 0 Win Type - Total 5 Types 5/0/0/0/0/0/0/0/0 Lore% 51 Gallery% 73 Achievement% 58 Wizard Run 0 Options --------- ASCII 0 Keyboard 0 Movement Numpad Keybinds 0 Fullscreen 2 Font 18/TerminusBold Map View 76x50 Tactical HUD 1 Map Filters NONE Filters NONE Steam 1 RUN: 037877e3-5c25-44dc-8dba-6847435ef909